Cogmind - Beta 9.2 @@@ ROGUE MODE // 2019.11.22 @ 01:28:57 Player: Alexbot Result: Escaped! Performance ------------- Evolutions (9) 4500 Regions Visited (34) 6800 Robots Destroyed (333) 1665 Value Destroyed (16407) 16407 Prototype IDs (93) 1860 Alien Tech Used (1) 200 Bonus (19065) 19065 TOTAL SCORE: 50497 Bonus ------- Trapped 750 High Alert Combat Kills 2342 Follower Combat Kills 3593 Entered Garrisons 200 Used RIF Installer 500 Network Hubs Disabled 800 Aligned with FarCom 300 Met Data Miner 300 Built Enhanced Grunts 300 Met R17 at Cetus 500 Found Hidden Lab 3000 Met R17 at Research 2000 Win 3000 Challenge Win 7000 Friendly Fire -5520 Cogmind --------- Core Integrity 1585/1600 Matter 52/300 Energy 982/990 System Corruption 0% Temperature Cool (11) Movement Hovering (148) Ox1 Location To Epsilon Eridani Parts ------- > --- POWER (1) -------- Light Quantum Reactor > --- PROPULSION (4) --- Combat Linear Gravjet Combat Linear Gravjet Combat Linear Gravjet Combat Linear Gravjet > --- UTILITY (18) ----- Improved Fusion Compressor Advanced Coolant Injector Medium Storage Unit Large Storage Unit Large Storage Unit High-capacity Storage Unit Advanced Energy Well Experimental Terrain Scanner Experimental Terrain Scan Processor Experimental Targeting Computer Advanced Particle Charger Improved Transmission Jammer Experimental Utility Shielding Medium Regenerative Plating Improved Force Field Hacking Suite Experimental Hacking Suite Quantum Router > --- WEAPON (2) ------- Advanced Variable Charge Gun Enhanced Force Lance > --- INVENTORY (28) --- Advanced Heavy Siege Treads Improved Matter Compressor (300) Faulty Experimental Core Analyzer Advanced Weapon Cycler Advanced Reaction Control System Experimental Phase Shifter Experimental Propulsion Shielding Experimental Utility Shielding Experimental Weapon Shielding Damper Plating Advanced Focal Shield Hacking Suite Quantum Router Transdimensional Reconstructor Core Regenerator Gamma Rifle Warp Cannon Improved KE Penetrator Hypervelocity Mass Driver Mini Smartbomb Launcher Guided Remote Datajack Peak State ------------ > --- POWER ------------ Light Quantum Reactor > --- PROPULSION ------- Combat Linear Gravjet Combat Linear Gravjet Combat Linear Gravjet Combat Linear Gravjet > --- UTILITY ---------- Improved Fusion Compressor Medium Storage Unit Large Storage Unit Large Storage Unit High-capacity Storage Unit Advanced Energy Well Experimental Terrain Scanner Experimental Terrain Scan Processor Experimental Targeting Computer Advanced Particle Charger Advanced Weapon Cycler Improved Transmission Jammer Experimental Utility Shielding Medium Regenerative Plating Improved Force Field Hacking Suite Experimental Hacking Suite Quantum Router > --- WEAPON ----------- Advanced Variable Charge Gun Enhanced Force Lance > --- INVENTORY -------- Advanced Heavy Siege Treads Advanced Coolant Injector Improved Matter Compressor Experimental Core Analyzer Advanced Reaction Control System Experimental Phase Shifter Experimental Propulsion Shielding Experimental Utility Shielding Experimental Weapon Shielding Damper Plating Advanced Focal Shield Hacking Suite Quantum Router Transdimensional Reconstructor Core Regenerator Gamma Rifle Warp Cannon Improved KE Penetrator Hypervelocity Mass Driver Mini Smartbomb Launcher Guided Remote Datajack [Rating: 179] Favorites ----------- Power Micro Fission Core Engine Light Angular Momentum Engine Power Core Micro Fission Core Reactor Antimatter Reactor Propulsion Gyrokinetic Inverter Treads Heavy Treads Leg Carbon-fiber Leg Wheel Wheel Hover Unit Gyrokinetic Inverter Utility Medium Storage Unit Device Advanced Heat Sink Storage Medium Storage Unit Processor Advanced Terrain Scan Processor Hackware Makeshift Hacking Suite Protection Medium Regenerative Plating Weapon Mini Assault Cannon Energy Gun Lightning Gun Energy Cannon Heavy Plasma Cannon Ballistic Gun Improved KE Penetrator Ballistic Cannon Mini Assault Cannon Launcher Mini Smartbomb Launcher Special Weapon Improved Remote Datajack Impact Weapon Powered Hammer Slashing Weapon Katana Piercing Weapon Enhanced Force Lance Special Melee Weapon Datajack Build | -11 -10 -10 -10 -9 -8 -8 -7 -7 -7 -7 -7 -7 -6 -6 -6 -6 -6 -6 -6 -5 -5 -5 -5 -5 -5 -5 -4 -4 -4 -4 -4 -3 -2 -1 ------- Run | Scr Mat Min Exi Min Mat Sto Fac Was Fac Low Low Zio Pro Fac Was Fac Low Low Dat Pro Fac Ext Cet Arc Hub Gar Fac Was Fac Arm Lab Res Res Acc Slots Evolved 18 | . . . . . 4 . 2 . . . . . . 2 . . . . . . 2 . . . . . 2 . . . . 2 2 2 Power . | . . . . . . . . . . . . . . . . . . . . . . . . . . . . . . . . . . . Propulsion 2 | . . . . . . . . . . . . . . . . . . . . . 2 . . . . . . . . . . . . . Utility 16 | . . . . . 4 . 2 . . . . . . 2 . . . . . . . . . . . . 2 . . . . 2 2 2 Weapon . | . . . . . . . . . . . . . . . . . . . . . . . . . . . . . . . . . . . Parts Attached 521 | 6 1 . 1 1 32 11 4 17 8 4 1 5 13 10 . 21 4 1 7 32 31 13 16 4 29 10 5 . 84 38 3 20 83 6 Power 28 | 1 . . . . 3 1 . 1 . . . 1 2 1 . 2 1 1 . 2 . 2 . . 2 . . . 3 1 . 1 3 . Engine 7 | 1 . . . . . 1 . . . . . 1 . 1 . 2 . . . 1 . . . . . . . . . . . . . . Core 16 | . . . . . 3 . . . . . . . 2 . . . 1 1 . 1 . 2 . . 2 . . . 3 1 . . . . Reactor 5 | . . . . . . . . 1 . . . . . . . . . . . . . . . . . . . . . . . 1 3 . Propulsion 74 | 2 . . . . 8 1 . 3 . 1 . . . 2 . 1 . . . 5 8 . 1 1 3 1 2 . 12 5 . 3 15 . Treads 21 | . . . . . 4 1 . 3 . 1 . . . 2 . 1 . . . 1 . . . . 1 1 . . 3 . . . 3 . Leg 3 | . . . . . . . . . . . . . . . . . . . . 3 . . . . . . . . . . . . . . Wheel 7 | 2 . . . . 4 . . . . . . . . . . . . . . 1 . . . . . . . . . . . . . . Hover 43 | . . . . . . . . . . . . . . . . . . . . . 8 . 1 1 2 . 2 . 9 5 . 3 12 . Flight . | . . . . . . . . . . . . . . . . . . . . . . . . . . . . . . . . . . . Utility 295 | 1 1 . 1 . 16 1 3 8 6 3 1 4 9 6 . 13 . . 4 17 18 9 10 3 20 7 3 . 48 25 1 6 48 3 Device 154 | . . . . . 4 1 1 4 1 1 . 1 6 3 . 3 . . 3 8 6 5 3 2 9 4 1 . 29 20 . 3 33 3 Storage 36 | 1 . . 1 . 4 . . 1 1 . . . 2 1 . 3 . . 1 1 4 1 4 . 2 1 . . 4 1 . 1 2 . Processor 11 | . . . . . 1 . . . 1 1 . . . 2 . 2 . . . 1 . . . . 1 . 1 . 1 . . . . . Hackware 14 | . . . . . . . . . 1 . . 2 . . . 1 . . . . 1 2 . . . . 1 . 2 . . . 4 . Protection 80 | . 1 . . . 7 . 2 3 2 1 1 1 1 . . 4 . . . 7 7 1 3 1 8 2 . . 12 4 1 2 9 . Artifact . | . . . . . . . . . . . . . . . . . . . . . . . . . . . . . . . . . . . Weapon 124 | 2 . . . 1 5 8 1 5 2 . . . 2 1 . 5 3 . 3 8 5 2 5 . 4 2 . . 21 7 2 10 17 3 Energy Gun 32 | 2 . . . 1 3 5 1 . . . . . . . . 1 . . . 1 . . 1 . . . . . 6 3 1 2 4 1 Energy Cannon 20 | . . . . . . . . 2 . . . . . 1 . 1 2 . 2 2 1 . 1 . . . . . 4 1 1 1 1 . Ballistic Gun 14 | . . . . . 1 . . . . . . . . . . . . . . . 1 . 2 . 2 2 . . 4 . . 1 1 . Ballistic Cannon 38 | . . . . . . . . 3 2 . . . 1 . . 3 1 . 1 5 2 2 . . 2 . . . 6 3 . 3 4 . Launcher 4 | . . . . . . . . . . . . . . . . . . . . . . . . . . . . . . . . 1 2 1 Special Weapon 4 | . . . . . . . . . . . . . . . . . . . . . 1 . 1 . . . . . . . . . 2 . Impact Weapon 3 | . . . . . 1 1 . . . . . . . . . . . . . . . . . . . . . . 1 . . . . . Slashing Weapon 2 | . . . . . . 1 . . . . . . 1 . . . . . . . . . . . . . . . . . . . . . Piercing Weapon 6 | . . . . . . . . . . . . . . . . . . . . . . . . . . . . . . . . 2 3 1 Special Melee Weapon 1 | . . . . . . 1 . . . . . . . . . . . . . . . . . . . . . . . . . . . . Unidentified Prototypes 22 | . . . . . . . 1 1 1 1 . . . . . 1 . . . 2 . . 4 . 5 . . . . . 2 2 2 . Parts Lost 52 | . . . . 5 10 4 . 3 . 1 . . 2 . 2 9 3 . . 7 2 2 . . . . . . 1 1 . . . . Power 10 | . . . . 1 3 . . . . . . . 1 . . 2 1 . . 2 . . . . . . . . . . . . . . Propulsion 6 | . . . . . 2 . . 2 . . . . . . . . . . . 1 . . . . . . . . . 1 . . . . Utility 22 | . . . . 1 4 1 . . . 1 . . 1 . 2 6 1 . . 1 1 2 . . . . . . 1 . . . . . Weapon 14 | . . . . 3 1 3 . 1 . . . . . . . 1 1 . . 3 1 . . . . . . . . . . . . . Highest Loss Streak 5 | . . . . 5 4 2 . 2 . 1 . . 2 . 2 3 2 . . 4 1 2 . . . . . . 1 1 . . . . Average Slot Usage (%) 88 | . 91 100 100 55 76 97 77 56 71 75 69 81 80 92 80 87 87 85 83 88 96 94 99 100 91 94 96 89 92 94 100 96 98 92 Engine 1 | . 14 14 14 3 . 8 7 1 . . . 5 3 2 6 5 1 . . 1 . . . . . . . . . . . . . . Core 2 | . . . . . 4 . . . . . . . 2 3 . . 4 5 6 3 5 5 5 5 5 5 5 5 5 5 5 1 . . Reactor 1 | . . . . . . . . 4 7 7 7 1 . . . . . . . . . . . . . . . . . . . 2 3 4 Treads 4 | . . . . . 7 18 15 8 7 7 7 7 7 6 6 5 6 6 6 2 . . . . 3 4 . . . . . . . . Hover 8 | . . . . . . . . . . . . . . . . . . . . . 18 23 23 23 14 13 19 21 20 21 21 18 16 16 Device 8 | . . . . . 5 4 9 9 7 7 7 13 15 18 13 5 . . 5 7 6 7 5 5 4 15 18 15 7 12 19 18 16 20 Storage 19 | . 14 14 14 14 20 27 23 5 6 7 7 7 7 19 16 20 33 33 30 26 24 23 28 29 23 23 21 21 21 23 21 19 20 20 Processor 7 | . . . . . 6 9 7 1 1 8 10 7 7 14 13 17 13 13 13 7 . . . . . 5 9 10 10 10 10 9 8 8 Hackware 8 | . . . . . . . . . 3 6 . 12 15 13 13 13 13 13 13 13 14 13 11 11 10 5 5 10 12 5 5 4 9 12 Protection 9 | . 5 14 14 2 10 13 4 14 21 13 11 8 3 . . 3 1 . . 3 9 6 10 11 12 5 5 5 7 9 6 13 12 8 Energy Gun 1 | . 28 28 28 7 7 11 1 . . . . . . . . . . . . 1 . . 2 . . . . . 1 1 5 1 . . Ballistic Gun 1 | . . . . . 2 . . . . . . . . . . . . . . . . . 6 11 6 1 9 . 1 . . . 1 . Ballistic Cannon 6 | . . . . . . . . 4 14 15 15 15 13 8 6 10 5 6 2 5 6 11 . . 4 9 . . 1 3 2 2 1 . Naked Turns 36 | . . . . . . . . 36 . . . . . . . . . . . . . . . . . . . . . . . . . . Heaviest Build 158 | 12 15 15 43 43 70 74 75 130 130 86 94 94 38 48 48 59 61 60 73 88 81 108 109 100 137 136 105 81 128 107 99 118 158 137 Greatest Support 128 | 26 26 26 26 26 44 44 44 70 70 70 70 70 70 70 70 70 70 70 70 70 82 82 82 82 82 82 82 82 98 121 121 128 128 128 Greatest Overweight (x) 23 | . . . 1 1 23 1 1 2 1 1 1 1 . 2 . . . . 1 5 1 1 1 1 1 1 1 . 6 1 . . 1 1 Average Overweight (x) . | . . . . 1 2 1 1 . 1 . 1 . . . . . . . . 1 . . 1 1 1 1 . . . . . . . . Largest Inventory Capacity 28 | 6 6 6 12 12 20 20 20 20 8 8 8 8 8 12 12 20 20 20 20 20 22 26 26 26 26 26 26 26 26 26 26 26 28 28 Average Capacity 18 | 5 6 6 6 12 15 20 20 7 7 8 8 8 8 11 12 13 20 20 19 20 21 22 26 26 26 26 26 26 26 26 26 26 26 28 Most Carried 28 | 4 5 6 8 8 20 20 19 16 8 8 8 8 8 12 12 17 20 20 20 20 22 23 26 26 26 26 26 26 26 26 26 26 28 27 Average Carried 17 | 2 4 5 6 7 13 18 17 6 7 7 8 8 7 11 11 12 17 20 16 18 20 21 25 26 25 25 24 26 24 25 25 25 25 25 Final Capacity 28 | 6 6 6 12 12 20 20 20 4 8 8 8 8 8 12 12 20 20 20 20 20 22 26 26 26 26 26 26 26 26 26 26 26 28 28 Final Carried 27 | 4 5 6 8 7 18 18 15 4 8 8 8 8 8 12 12 17 20 20 19 20 22 23 26 26 26 26 26 26 24 25 26 26 27 24 Class Distribution -------------------- 30% | Hacker-Mutant 30% | Scavenger-Mutant 12% | Hauler-Mutant 5% | Mutant 5% | Derelict-Mutant 3% | Mechanic-Ninja Dominant Class ---------------- Mutant | -10/Materials Mutant | -10/Mines Mutant | -10/Exiles Mutant | -9/Mines Mutant | -8/Materials Hauler-Mutant | -8/Storage Hauler-Mutant | -7/Factory Scavenger-Mutant | -7/Waste Scavenger-Mutant | -7/Factory Scavenger-Mutant | -7/Lower Caves Scavenger-Mutant | -7/Lower Caves Derelict-Mutant | -7/Zion Derelict-Mutant | -6/Proximity Caves Hacker-Mutant | -6/Factory Hacker-Mutant | -6/Waste Hacker-Mutant | -6/Factory Hacker-Mutant | -6/Lower Caves Hacker-Mutant | -6/Lower Caves Hacker-Mutant | -6/Data Miner Hacker-Mutant | -5/Proximity Caves Hacker-Mutant | -5/Factory Hacker-Mutant | -5/Extension Scavenger-Mutant | -5/Cetus Scavenger-Mutant | -5/Archives Scavenger-Mutant | -5/Hub_04(d) Scavenger-Mutant | -5/Garrison Scavenger-Skirmisher | -4/Factory Scavenger-Scout | -4/Waste Hacker-Mutant | -4/Factory Scavenger-Mutant | -4/Armory Scavenger-Mutant | -4/Lab Mechanic-Scout | -3/Research Mechanic-Ninja | -2/Research Hacker-Ninja | -1/Access Resources | -11 -10 -10 -10 -9 -8 -8 -7 -7 -7 -7 -7 -7 -6 -6 -6 -6 -6 -6 -6 -5 -5 -5 -5 -5 -5 -5 -4 -4 -4 -4 -4 -3 -2 -1 ----------- Run | Scr Mat Min Exi Min Mat Sto Fac Was Fac Low Low Zio Pro Fac Was Fac Low Low Dat Pro Fac Ext Cet Arc Hub Gar Fac Was Fac Arm Lab Res Res Acc Matter Collected 18876 | 206 . 68 . 107 360 203 . 199 430 511 70 50 1650 293 130 1242 431 55 399 1044 670 491 588 93 1753 344 . 89 2250 907 250 1106 2887 . Remotely . | . . . . . . . . . . . . . . . . . . . . . . . . . . . . . . . . . . . Salvage Created 17829 | . 16 . . 161 1414 588 . . 497 430 . . 855 332 130 1322 300 13 245 635 594 411 658 125 2119 377 . . 2119 1106 . 603 2686 93 Parts 684 | . 1 . . . 46 27 . . 19 14 . . 14 18 . 49 10 1 5 33 33 24 34 8 73 16 . . 75 31 . 23 123 7 Haulers Intercepted 5 | . . . . . . 2 . . 1 . . . . . . 1 . . . 1 . . . . . . . . . . . . . . Recyclers Shooed 13 | . . . . . 2 . . . 1 . . . . 1 . 3 . . . . . . . . . . . . 3 . . . 3 . Parts Field Recycled . | . . . . . . . . . . . . . . . . . . . . . . . . . . . . . . . . . . . Retrieved Matter . | . . . . . . . . . . . . . . . . . . . . . . . . . . . . . . . . . . . Parts Self-Destructed 72 | . . . . . . . . . . 14 1 . 13 . . . 14 . . 30 . . . . . . . . . . . . . . Prevented 5 | . . . . . . . . . . . . . . . . . . . . 5 . . . . . . . . . . . . . . Kills | -11 -10 -10 -10 -9 -8 -8 -7 -7 -7 -7 -7 -7 -6 -6 -6 -6 -6 -6 -6 -5 -5 -5 -5 -5 -5 -5 -4 -4 -4 -4 -4 -3 -2 -1 ------- Run | Scr Mat Min Exi Min Mat Sto Fac Was Fac Low Low Zio Pro Fac Was Fac Low Low Dat Pro Fac Ext Cet Arc Hub Gar Fac Was Fac Arm Lab Res Res Acc Combat Hostiles Destroyed 258 | . . . . 7 19 7 . . 1 15 . . 4 7 1 21 7 1 4 12 8 11 6 1 31 10 . . 27 15 . 9 30 4 Melee 15 | . . . . 1 5 1 . . . . . . . . . . . . . . . . . . . . . . . . . 1 7 . Guns 51 | . . . . 6 7 6 . . . . . . . . . . . . . . . . 4 1 13 3 . . 9 . . . 2 . Cannons 142 | . . . . . . . . . 1 15 . . 4 7 1 21 7 1 . 11 5 11 1 . 13 7 . . 14 7 . 7 9 . AOE 18 | . . . . . . . . . . . . . . . . . . . 1 . 1 . . . 1 . . . . . . 1 10 4 Classes Destroyed 21 | . 1 . . 2 4 3 . . 1 2 . . 1 . 1 . 1 1 . . . . . . 1 . . . 2 . . . 1 . Worker 8 | . . . . . . 2 . . 2 . . . . . . . . . . . . . . . 1 . . . 1 . . . 1 1 Builder 3 | . . . . . . . . . . . . . . . . . . . . . . . . . . . . . 2 . . . 1 . Tunneler 1 | . . . . . . . . . . . . . . . . . . . . . . . . . . . . . 1 . . . . . Hauler 5 | . . . . . . 2 . . 1 . . . . . . 1 . . . 1 . . . . . . . . . . . . . . Recycler 26 | . . . . . 4 1 . . 6 . . . . . . 5 . . . . 1 1 . . . . . . 2 . . . 6 . Carrier 1 | . . . . . . . . . . . . . . . . . . . . . . . . . . . . . . . . . 1 . Minesweeper 1 | . . . . . . . . . . . . . . . . . 1 . . . . . . . . . . . . . . . . . Operator 9 | . 1 . . . . 1 . . . . . . . . . . . . . . 1 . . 1 4 . . . . . . 1 . . Watcher 15 | . . . . . 1 . . . 1 . . . . . . 3 . . . . 1 1 . . 3 . . . 2 . . 1 2 . Swarmer 49 | . . . . . . . . . . 8 . . 3 1 . 6 3 . . . . 9 . . 1 3 . . 1 . . . 10 4 Grunt 78 | . . . . . 13 5 . . . 3 . . . 4 . 6 1 . . 4 2 1 1 . 13 6 . . 6 9 . 4 . . Brawler 8 | . . . . . . . . . . 3 . . . 1 . 1 . . . . . . . . 1 . . . 2 . . . . . Duelist 8 | . . . . . . 1 . . . . . . . . . . 2 . . 1 . . . . . . . . 1 3 . . . . Protector 2 | . . . . . . . . . . . . . . . . . . . . . . . . . 1 . . . . 1 . . . . Sentry 42 | . . . . . 5 1 . . . 1 . . . . . 4 1 . . . 3 1 . 1 5 . . . 8 2 . 3 7 . Hunter 19 | . . . . . 1 . . . . . . . . . . . . . . 4 1 . 1 . . . . . 4 . . 2 6 . Programmer 27 | . . . . . . . . . 1 . . . . 1 . 4 . . . 2 2 . . . 4 1 . . 5 . . . 7 . Behemoth 2 | . . . . . . . . . . . . . 1 . . . . . . 1 . . . . . . . . . . . . . . Compactor 1 | . . . . . . . . . . . . . . . 1 . . . . . . . . . . . . . . . . . . . Cetus Guard 4 | . . . . . . . . . . . . . . . . . . . . . . . 4 . . . . . . . . . . . Enhanced Grunt 6 | . . . . . . . . . . . . . . . . . . . 4 . . . 2 . . . . . . . . . . . Lightning 6 | . . . . . . . . . . . . . . . . . . . . . . . . . 6 . . . . . . . . . Thief 1 | . . . . . . . . . . . . . . . . . . 1 . . . . . . . . . . . . . . . . Assembled 7 | . . . . 7 . . . . . . . . . . . . . . . . . . . . . . . . . . . . . . Butcher 1 | . . . . . . . . . 1 . . . . . . . . . . . . . . . . . . . . . . . . . Guerrilla 1 | . . . . 1 . . . . . . . . . . . . . . . . . . . . . . . . . . . . . . Best Kill Streak 20 | . 1 . . 7 5 3 . . 2 6 . . 3 3 1 6 3 1 5 2 2 7 2 2 20 3 . . 7 6 . 4 10 5 Combat Bots Only 15 | . . . . 7 3 2 . . 1 6 . . 3 3 1 4 3 1 4 2 2 5 2 1 15 3 . . 5 6 . 4 8 4 Max Kills in Single Turn 5 | . 1 . . 1 1 1 . . 1 1 . . 1 1 1 1 1 1 2 1 2 1 1 1 3 1 . . 2 1 . 1 3 5 Gunslinging . | . . . . . . . . . . . . . . . . . . . . . . . . . . . . . . . . . . . Exploded 4 | . . . . . . . . . . . . . . . . . . . 1 . 1 . . . 1 . . . . . . 1 3 4 Melee 1 | . . . . 1 1 1 . . . . . . . . . . . . . . . . . . . . . . . . . 1 1 . Uniques/NPCs Destroyed 2 | . . . . . . . . . . . . . . . . . . . 1 . . . 1 . . . . . . . . . . . Data Miner (-6/Data Miner) A7 (-5/Cetus) Combat | -11 -10 -10 -10 -9 -8 -8 -7 -7 -7 -7 -7 -7 -6 -6 -6 -6 -6 -6 -6 -5 -5 -5 -5 -5 -5 -5 -4 -4 -4 -4 -4 -3 -2 -1 -------- Run | Scr Mat Min Exi Min Mat Sto Fac Was Fac Low Low Zio Pro Fac Was Fac Low Low Dat Pro Fac Ext Cet Arc Hub Gar Fac Was Fac Arm Lab Res Res Acc Damage Taken 16931 | . . . . 427 2007 552 . 189 150 1138 4 . 515 199 85 2263 527 95 . 1419 745 1340 374 24 1041 241 . . 1322 874 . 363 980 57 Core 2333 | . . . . 75 382 70 . 92 2 106 . . 36 49 42 341 52 20 . 271 46 132 50 . 37 6 . . 90 253 . 111 55 15 Absorbed by Shields 1279 | . . . . . . . . . . . . . . 76 15 . . . . . 20 50 62 . . 147 . . 237 . . . 615 57 Reduced by Siege Mode 351 | . . . . . . . . . . 16 . . . 14 . 162 25 . . 22 . . . . 41 16 . . 43 . . . 12 . Core Remaining (%) 68 | 100 . . . 70 . 17 . . . . . . 66 . . . . . . 8 . . . . . 72 . . . . 70 91 96 99 Volleys Fired 1082 | . 4 . . 21 53 33 . . 33 33 5 . 26 39 10 113 26 3 1 47 71 60 58 7 112 24 . . 128 60 10 47 53 5 Largest 2 | . 2 . . 2 2 2 . . 2 2 2 . 2 2 2 2 2 2 2 2 2 1 2 2 2 2 . . 2 1 1 1 1 1 Hottest 240 | . 80 . . 80 110 110 . . 96 96 96 . 96 138 138 123 138 138 180 138 106 57 81 70 123 123 . . 123 80 100 100 100 240 Shots Fired 1499 | . 7 . . 33 69 45 . . 55 66 10 . 43 59 20 188 43 7 2 61 71 60 100 14 169 42 . . 160 60 10 47 53 5 Gun 520 | . 7 . . 33 69 45 . . . . . . . . . 11 . . . 15 . . 84 14 93 10 . . 77 22 9 10 17 4 Cannon 961 | . . . . . . . . . 55 66 10 . 43 59 20 177 43 7 2 46 70 60 12 . 76 32 . . 83 38 1 33 28 . Launcher 10 | . . . . . . . . . . . . . . . . . . . . . . . . . . . . . . . . 4 5 1 Special 8 | . . . . . . . . . . . . . . . . . . . . . 1 . 4 . . . . . . . . . 3 . Kinetic 1052 | . . . . . . . . . 55 66 10 . 43 29 10 169 25 4 . 33 42 60 84 14 169 42 . . 120 23 . 30 24 . Thermal 204 | . 3 . . 12 . 7 . . . . . . . 30 10 19 18 3 2 13 15 . . . . . . . 21 22 10 11 4 4 Explosive 10 | . . . . . . . . . . . . . . . . . . . . . . . . . . . . . . . . 4 5 1 Electromagnetic 225 | . 4 . . 21 69 38 . . . . . . . . . . . . . 15 13 . 12 . . . . . 19 15 . 2 17 . Robot Hit Streak 45 | . 1 . . 9 15 9 . . 4 19 8 . 13 16 4 13 17 2 3 11 8 4 5 6 22 13 . . 45 17 . 8 19 . Robot Miss Streak 7 | . 2 . . 7 2 3 . . 2 2 2 . 2 2 1 3 3 3 . 2 7 4 5 3 4 1 . . 2 2 . 2 2 . Penetration Max 2 | . . . . . . . . . 1 . . . . . . . . . . . . . 1 1 1 1 . . 1 1 . 1 2 . Secondary Targets 4 | . . . . . . . . . . . . . . . . . . . . . . . . . 1 1 . . 2 . . . . . Max Gunslinging Chain 1 | . . . . . . . . . . . . . . . . . . . . . . . . . 1 1 . . 1 . . . . . Shots Hit Robots 986 | . 3 . . 17 102 39 . . 20 38 7 . 46 42 13 107 31 2 1 42 26 17 30 8 114 34 . . 117 33 . 28 69 . Core Hits 510 | . 1 . . 13 27 20 . . 12 18 1 . 20 14 2 50 14 1 13 16 18 15 26 5 67 12 . . 51 17 . 17 54 6 Critical Hits 235 | . . . . . . . . . 1 . . . 3 . . 7 . . . 12 1 . 12 1 56 22 . . 57 15 . 23 25 . Critical Kills 89 | . . . . . . . . . . . . . 1 . . 2 . . . 5 . . 2 1 21 9 . . 21 6 . 7 14 . Critical Parts Destroyed 126 | . . . . . . . . . 1 . . . 1 . . 3 . . . 7 1 . 7 . 33 13 . . 32 8 . 10 10 . Melee Attacks 178 | . . . . . 57 27 . . . . . . 14 . . . . . . . . . . . . . . . . . . 6 64 10 Impact 68 | . . . . . 57 11 . . . . . . . . . . . . . . . . . . . . . . . . . . . . Slashing 29 | . . . . . . 15 . . . . . . 14 . . . . . . . . . . . . . . . . . . . . . Piercing 80 | . . . . . . . . . . . . . . . . . . . . . . . . . . . . . . . . 6 64 10 Sneak Attacks 10 | . . . . . . 4 . . . . . . . . . . . . . . . . . . . . . . . . . . 6 . Combat Hostiles 1 | . . . . . . . . . . . . . . . . . . . . . . . . . . . . . . . . . 1 . Follow-up Attacks . | . . . . . . . . . . . . . . . . . . . . . . . . . . . . . . . . . . . Damage Inflicted 36469 | . 87 . . 242 2524 1087 . . 802 1086 212 . 2375 1277 464 3024 939 65 751 1098 1441 687 2083 248 4670 580 . . 3444 1401 . 1186 4289 407 Guns 8868 | . 41 . . 178 1174 585 . . . . . . . . . 195 . . . 213 . . 1906 248 2028 155 . . 1608 42 . . 495 . Cannons 17261 | . . . . . . . . . 801 1086 212 . 872 1273 464 2829 939 65 33 885 851 687 177 . 1091 425 . . 1836 1359 . 678 698 . Explosions 5251 | . 46 . . 56 55 40 . . . . . . . . . . . . 718 . 590 . . . 1533 . . . . . . 333 1473 407 Melee 5046 | . . . . . 1283 462 . . . . . . 1503 . . . . . . . . . . . . . . . . . . 175 1623 . Ramming 43 | . . . . 8 12 . . . 1 . . . . 4 . . . . . . . . . . 18 . . . . . . . . . Kinetic 18590 | . . . . . . . . . 801 1086 212 . 872 561 186 2829 518 30 . 601 523 687 1906 248 3119 580 . . 2599 272 . 501 459 . Thermal 3369 | . 57 . . 100 55 76 . . . . . . . 712 278 195 421 35 33 284 655 . . . . . . . 97 42 . 90 239 . Explosive 2213 | . . . . . . . . . . . . . . . . . . . . . . . . . . . . . . . . 333 1473 407 Electromagnetic 7208 | . 30 . . 134 1174 549 . . . . . . . . . . . . 718 213 263 . 177 . 1533 . . . 748 1087 . 87 495 . Impact 1454 | . . . . . 1283 171 . . . . . . . . . . . . . . . . . . . . . . . . . . . . Slashing 1794 | . . . . . . 291 . . . . . . 1503 . . . . . . . . . . . . . . . . . . . . . Piercing 1798 | . . . . . . . . . . . . . . . . . . . . . . . . . . . . . . . . 175 1623 . Highest Corruption 18 | . . . . . 6 8 . . . . . . . . . 16 16 16 16 18 1 11 11 10 3 1 . . 2 . . . 4 . Average Corruption 6 | . . . . . 4 7 . . . . . . . . . 5 16 16 16 17 1 7 10 4 1 1 . . 1 . . . 2 . Corruption Purged 17 | . . . . . . . . . . . . . . . . . . . . . . . 1 10 3 1 . . 2 . . . . . Effects 426 | . . . . . 30 64 . . . . . . . . . 45 35 28 19 72 5 21 34 27 5 . . . 14 . . . 27 . Message Errors 86 | . . . . . 8 14 . . . . . . . . . 10 5 4 4 11 2 3 3 3 4 . . . 8 . . . 7 . Matter Fused 84 | . . . . . 8 15 . . . . . . . . . 16 10 3 5 9 . 6 4 6 . . . . . . . . 2 . Heat Flow Errors 48 | . . . . . 3 9 . . . . . . . . . 4 5 3 1 4 . 4 1 7 . . . . 2 . . . 5 . Energy Discharges 40 | . . . . . 1 7 . . . . . . . . . 3 1 6 1 5 1 2 3 2 1 . . . 2 . . . 5 . Parts Rejected 8 | . . . . . 2 . . . . . . . . . . . . . . 4 . . 1 1 . . . . . . . . . . Data Loss (minor) 36 | . . . . . 1 5 . . . . . . . . . 3 4 2 2 4 1 1 1 4 . . . . 2 . . . 6 . Data Loss (major) 13 | . . . . . 1 3 . . . . . . . . . . 2 1 1 . . . 4 1 . . . . . . . . . . Misfires 14 | . . . . . . 4 . . . . . . . . . 2 1 1 . 4 . 1 1 . . . . . . . . . . . Alerts 7 | . . . . . . . . . . . . . . . . 1 1 . 2 2 . . 1 . . . . . . . . . . . Misdirections 34 | . . . . . . . . . . . . . . . . . 4 6 3 16 . 2 3 . . . . . . . . . . . Targeting Errors 50 | . . . . . 6 7 . . . . . . . . . 5 2 2 . 11 . 1 11 3 . . . . . . . . 2 . Weapon Failures 6 | . . . . . . . . . . . . . . . . 1 . . . 2 1 1 1 . . . . . . . . . . . Overload Shots 4 | . . . . . . . . . . . . . . . . . . . . . . . . . . . . . . . . . . 4 Overflow Damage 1211 | . 16 . . . 67 86 . . 33 9 2 . 336 24 . 97 71 . . 2 107 30 . . 45 . . . 74 24 . . 186 2 Projectiles 426 | . . . . . . . . . 33 9 2 . 24 24 . 97 71 . . 2 3 30 . . . . . . 74 24 . . 33 . Explosions 266 | . 16 . . . . . . . . . . . . . . . . . . . 104 . . . 45 . . . . . . . 99 2 Melee 519 | . . . . . 67 86 . . . . . . 312 . . . . . . . . . . . . . . . . . . . 54 . Knockbacks 90 | . . . . . . 1 . . 9 2 4 . 2 3 . 19 10 . . 3 6 6 . . 6 8 . . 5 1 . 2 3 . Impact 1 | . . . . . . 1 . . . . . . . . . . . . . . . . . . . . . . . . . . . . Kinetic 85 | . . . . . . . . . 9 2 4 . 1 3 . 18 9 . . 3 6 6 . . 6 8 . . 5 1 . 2 2 . Secondary 4 | . . . . . . . . . . . . . 1 . . 1 1 . . . . . . . . . . . . . . . 1 . Self-Inflicted Damage 106 | . . . . 40 31 . . . . . . . . . . . . . . . . . . . 35 . . . . . . . . . Shots 5 | . . . . 1 1 . . . . . . . . . . . . . . . . . . . 3 . . . . . . . . . Rammed 7 | . . . . 1 3 . . . 1 . . . . 1 . . . . . . . . . . 1 . . . . . . . . . Targets Rammed 7 | . . . . 1 3 . . . 1 . . . . 1 . . . . . . . . . . 1 . . . . . . . . . Kicked . | . . . . . . . . . . . . . . . . . . . . . . . . . . . . . . . . . . . Crushed . | . . . . . . . . . . . . . . . . . . . . . . . . . . . . . . . . . . . Highest Temperature 520 | . 36 . . 210 350 395 . . 24 21 . . 24 3 . 252 264 211 93 204 147 520 191 281 225 234 . . 336 212 185 165 257 211 Average Temperature 85 | . 20 . . 126 137 102 . . 7 11 . . 15 2 . 47 78 83 48 66 35 125 70 102 74 83 . . 90 66 98 52 77 97 Received Heat Transfer 3025 | . . . . 60 774 270 . 9 27 144 . . 36 42 . 369 72 18 . 249 125 25 15 . 336 95 . . 219 33 . 48 59 . Effects 6 | . . . . . 2 2 . . . . . . . . . . . . . . . 2 . . . . . . . . . . . . Shutdowns 1 | . . . . . . . . . . . . . . . . . . . . . . 1 . . . . . . . . . . . . Energy Bleed 2 | . . . . . 1 1 . . . . . . . . . . . . . . . . . . . . . . . . . . . . Interference 2 | . . . . . 1 1 . . . . . . . . . . . . . . . . . . . . . . . . . . . . Matter Decay 1 | . . . . . . . . . . . . . . . . . . . . . . 1 . . . . . . . . . . . . Siege Activations 36 | . . . . . . . . . . 1 . . . 2 . 12 2 1 2 1 . . . . 7 3 . . 3 . . . 2 . Total Turns 695 | . . . . . . . . . . 26 . . . 25 . 188 37 5 14 12 . . . . 206 57 . . 93 . . . 32 . Longest Duration 58 | . . . . . . . . . . 26 . . . 15 . 33 23 5 10 12 . . . . 58 20 . . 41 . . . 27 . Robots Corrupted 33 | . . . . 1 5 . . . . . . . . . . . . . 3 1 2 . 1 . 6 . . . 4 8 . . 2 . Combat Hostiles 29 | . . . . . 4 . . . . . . . . . . . . . 3 1 2 . 1 . 4 . . . 4 8 . . 2 . Parts Fried 74 | . 1 . . . 16 3 . . . . . . . . . . . . 4 2 . . 4 . 15 . . . 9 16 . . 4 . Impact Corruptions 8 | . . . . . 7 1 . . . . . . . . . . . . . . . . . . . . . . . . . . . . Robots Melted . | . . . . . . . . . . . . . . . . . . . . . . . . . . . . . . . . . . . Combat Hostiles . | . . . . . . . . . . . . . . . . . . . . . . . . . . . . . . . . . . . Parts Melted 1 | . . . . . . 1 . . . . . . . . . . . . . . . . . . . . . . . . . . . . Heat Transferred 4053 | . 75 . . 150 50 125 . . . . . . . 851 333 450 650 50 50 350 512 . . . . . . . 111 74 . 74 148 . Parts Sabotaged . | . . . . . . . . . . . . . . . . . . . . . . . . . . . . . . . . . . . Parts Stolen 1 | . . . . . . . . . . . . . . . . . . 1 . . . . . . . . . . . . . . . . Parts Stripped . | . . . . . . . . . . . . . . . . . . . . . . . . . . . . . . . . . . . Power Chain Reactions 5 | . 1 . . 1 2 1 . . . . . . . . . . . . . . . . . . . . . . . . . . . . Missiles Intercepted . | . . . . . . . . . . . . . . . . . . . . . . . . . . . . . . . . . . . Alert | -11 -10 -10 -10 -9 -8 -8 -7 -7 -7 -7 -7 -7 -6 -6 -6 -6 -6 -6 -6 -5 -5 -5 -5 -5 -5 -5 -4 -4 -4 -4 -4 -3 -2 -1 ------- Run | Scr Mat Min Exi Min Mat Sto Fac Was Fac Low Low Zio Pro Fac Was Fac Low Low Dat Pro Fac Ext Cet Arc Hub Gar Fac Was Fac Arm Lab Res Res Acc Peak Influence 2006 | . 20 7 . . 387 203 9 24 226 . . . . 135 50 227 . . . . 722 506 458 339 2006 1844 980 290 596 755 . 181 552 334 Average Influence 267 | . 18 7 . . 148 104 9 2 131 . . . . 50 40 117 . . . . 276 270 257 165 546 1615 950 290 224 442 . 52 353 268 Maximum Alert Level 5 | . . . . . 1 1 . . 1 . . . . . . 1 . . . . 3 2 2 1 5 5 3 1 2 3 . . 2 1 Low Security (%) 58 | 100 100 100 . 100 56 99 100 100 81 . . . . 100 100 89 . . . . 46 27 25 65 39 . . . 49 . . 100 14 26 Level 1 22 | . . . . . 43 . . . 18 . . . . . . 10 . . . . 19 60 50 34 22 . . 100 34 37 . . 41 73 Level 2 11 | . . . . . . . . . . . . . . . . . . . . . 27 12 23 . 5 . . . 16 60 . . 44 . Level 3 3 | . . . . . . . . . . . . . . . . . . . . . 6 . . . 17 . 100 . . 1 . . . . Level 4 1 | . . . . . . . . . . . . . . . . . . . . . . . . . . 60 . . . . . . . . Level 5 2 | . . . . . . . . . . . . . . . . . . . . . . . . . 14 39 . . . . . . . . High Security . | . . . . . . . . . . . . . . . . . . . . . . . . . . . . . . . . . . . Max Security . | . . . . . . . . . . . . . . . . . . . . . . . . . . . . . . . . . . . Squads Dispatched 65 | . 1 . . . 7 4 . . 4 . . . . 4 . 7 . . . . 5 2 . . 6 . . . 7 5 . 9 4 . Investigation 23 | . . . . . 5 2 . . . . . . . 2 . 1 . . . . 2 1 . . 1 . . . 3 3 . 3 . . Extermination 15 | . . . . . . . . . 2 . . . . 1 . 2 . . . . 1 . . . 2 . . . 3 1 . . 3 . Reinforcement 22 | . 1 . . . 2 2 . . 2 . . . . 1 . 1 . . . . 2 1 . . 2 . . . . 1 . 6 1 . Assault 1 | . . . . . . . . . . . . . . . . . . . . . . . . . 1 . . . . . . . . . Garrison 4 | . . . . . . . . . . . . . . . . 3 . . . . . . . . . . . . 1 . . . . . Intercept . | . . . . . . . . . . . . . . . . . . . . . . . . . . . . . . . . . . . Construction Impeded 5 | . . . . . . . . . . . . . . . . . . . . . 2 1 . . 1 . . . . . . . 1 . Haulers Reinforced 1 | . . . . . . . . . . . . . . . . 1 . . . . . . . . . . . . . . . . . . Stealth | -11 -10 -10 -10 -9 -8 -8 -7 -7 -7 -7 -7 -7 -6 -6 -6 -6 -6 -6 -6 -5 -5 -5 -5 -5 -5 -5 -4 -4 -4 -4 -4 -3 -2 -1 --------- Run | Scr Mat Min Exi Min Mat Sto Fac Was Fac Low Low Zio Pro Fac Was Fac Low Low Dat Pro Fac Ext Cet Arc Hub Gar Fac Was Fac Arm Lab Res Res Acc Distress Signals 25 | . . . . . 2 2 . . 1 . . . . . . 2 . . . . 2 . 2 . 1 . . . 5 1 . 3 3 1 Communications Jammed 45 | . . . . . . . . . . . . . . . . . . . . . . . . . . . . . . 8 . 32 5 . Distress Signals 45 | . . . . . . . . . . . . . . . . . . . . . . . . . . . . . . 8 . 32 5 . Times Spotted 455 | . 1 . . 8 34 18 . 6 16 17 1 . 9 11 5 28 8 4 . 26 19 20 17 7 57 10 . . 42 33 . 22 36 . Peak Tracking Total 13 | . . . . 8 7 3 . 6 3 8 1 . 5 3 4 6 4 3 . 9 5 6 6 2 13 3 . . 8 6 . 4 8 5 Tactical Retreats 36 | . . . . 1 6 3 . . . 3 . . . . 1 2 1 . . 1 . . 1 . 7 1 . . 6 2 . . 1 . Traps | -11 -10 -10 -10 -9 -8 -8 -7 -7 -7 -7 -7 -7 -6 -6 -6 -6 -6 -6 -6 -5 -5 -5 -5 -5 -5 -5 -4 -4 -4 -4 -4 -3 -2 -1 ------- Run | Scr Mat Min Exi Min Mat Sto Fac Was Fac Low Low Zio Pro Fac Was Fac Low Low Dat Pro Fac Ext Cet Arc Hub Gar Fac Was Fac Arm Lab Res Res Acc Traps Triggered 115 | . . . . . 10 7 1 . 4 . . . . 2 . 9 . . 4 . 2 18 . . 13 8 2 . 10 5 . 1 17 2 Indirectly 7 | . . . . . . . . . . . . . . . . . . . 4 . . . . . 3 . . . . . . . . . Trap Hack Attempts . | . . . . . . . . . . . . . . . . . . . . . . . . . . . . . . . . . . . Triggered . | . . . . . . . . . . . . . . . . . . . . . . . . . . . . . . . . . . . Disarmed . | . . . . . . . . . . . . . . . . . . . . . . . . . . . . . . . . . . . Reprogrammed . | . . . . . . . . . . . . . . . . . . . . . . . . . . . . . . . . . . . Reused 1 | . . . . . . . . . . . . . . . . . . . 1 . . . . . . . . . . . . . . . Traps Extracted . | . . . . . . . . . . . . . . . . . . . . . . . . . . . . . . . . . . . Installed 6 | . . . . . . . . . . . . . . . . . . . 6 . . . . . . . . . . . . . . . Triggered 2 | . . . . . . . . . . . . . . . . . . . . . . . . . 2 . . . . . . . . . Machines | -11 -10 -10 -10 -9 -8 -8 -7 -7 -7 -7 -7 -7 -6 -6 -6 -6 -6 -6 -6 -5 -5 -5 -5 -5 -5 -5 -4 -4 -4 -4 -4 -3 -2 -1 ---------- Run | Scr Mat Min Exi Min Mat Sto Fac Was Fac Low Low Zio Pro Fac Was Fac Low Low Dat Pro Fac Ext Cet Arc Hub Gar Fac Was Fac Arm Lab Res Res Acc Machines Disabled 86 | . . . . . . 3 . . 5 1 . . . 3 . 1 . . 1 . 13 2 . 3 45 1 . . 4 1 1 . 1 1 Max in Single Turn 25 | . . . . . . 1 . . 1 1 . . . 1 . 1 . . 1 . 6 1 . 3 25 1 . . 1 1 1 . 1 1 Garrison Access 4 | . . . . . 1 . . . . . . . . . . . . . . . 1 . . . . . . . 1 . . . 1 . Network Hub 4 | . . . . . . . . . . . . . . . . . . . . . . . . . 4 . . . . . . . . . Machines Sabotaged . | . . . . . . . . . . . . . . . . . . . . . . . . . . . . . . . . . . . Garrisons Compromised . | . . . . . . . . . . . . . . . . . . . . . . . . . . . . . . . . . . . Overloaded Fab Kills . | . . . . . . . . . . . . . . . . . . . . . . . . . . . . . . . . . . . Fab Network Shutdowns . | . . . . . . . . . . . . . . . . . . . . . . . . . . . . . . . . . . . Hacking | -11 -10 -10 -10 -9 -8 -8 -7 -7 -7 -7 -7 -7 -6 -6 -6 -6 -6 -6 -6 -5 -5 -5 -5 -5 -5 -5 -4 -4 -4 -4 -4 -3 -2 -1 --------- Run | Scr Mat Min Exi Min Mat Sto Fac Was Fac Low Low Zio Pro Fac Was Fac Low Low Dat Pro Fac Ext Cet Arc Hub Gar Fac Was Fac Arm Lab Res Res Acc Machines Accessed 94 | . . . 1 . 4 5 . . 3 1 . . . 3 . 3 . . 4 . 12 10 4 . 6 . 2 . 11 5 1 6 10 3 Terminals 62 | . . . . . 3 5 . . 3 . . . . 2 . 1 . . . . 8 10 4 . 5 . 1 . 4 4 . 2 7 3 Fabricators 9 | . . . . . . . . . . . . . . . . . . . . . 2 . . . . . . . 3 1 . 2 1 . Repair Stations 7 | . . . . . . . . . . . . . . 1 . 1 . . . . 1 . . . . . . . 2 . . 1 1 . Recycling Units . | . . . . . . . . . . . . . . . . . . . . . . . . . . . . . . . . . . . Scanalyzers 3 | . . . . . . . . . . . . . . . . . . . . . . . . . . . 1 . 1 . . 1 . . Garrison Access 6 | . . . . . 1 . . . . . . . . . . 1 . . . . 1 . . . 1 . . . 1 . . . 1 . Total Hacks 429 | . . . 1 . 10 10 . . 6 1 . . . 8 . 7 . . 23 . 31 38 15 . 18 . 13 . 77 23 1 43 90 14 Successful 235 | . . . 1 . 4 3 . . 2 1 . . . 2 . 3 . . 23 . 23 22 3 . 8 . 5 . 51 13 1 21 42 7 Failed 194 | . . . . . 6 7 . . 4 . . . . 6 . 4 . . . . 8 16 12 . 10 . 8 . 26 10 . 22 48 7 Catastrophic 35 | . . . . . 1 3 . . 4 . . . . . . . . . . . 2 2 3 . 5 . 2 . . 2 . . 9 2 Database Lockouts . | . . . . . . . . . . . . . . . . . . . . . . . . . . . . . . . . . . . Manual 191 | . . . 1 . 6 12 . . 3 . . . . 2 . 1 . . . . 11 26 16 . 11 . 6 . 30 16 . 16 27 7 Terminals 259 | . . . . . 9 10 . . 6 . . . . 5 . 2 . . . . 18 38 15 . 17 . 6 . 24 16 . 18 61 14 Fabricators 69 | . . . . . . . . . . . . . . . . . . . . . 8 . . . . . . . 23 7 . 16 15 . Repair Stations 47 | . . . . . . . . . . . . . . 3 . 3 . . . . 4 . . . . . . . 22 . . 3 12 . Recycling Units . | . . . . . . . . . . . . . . . . . . . . . . . . . . . . . . . . . . . Scanalyzers 19 | . . . . . . . . . . . . . . . . . . . . . . . . . . . 7 . 6 . . 6 . . Garrison Access 9 | . . . . . 1 . . . . . . . . . . 2 . . . . 1 . . . 1 . . . 2 . . . 2 . Terminal Hacks 106 | . . . 1 . 1 2 . . 1 1 . . . . . . . . 23 . 7 17 2 . 4 . 1 . 11 5 1 5 19 5 Record 12 | . . . . . . . . . . . . . . . . . . . 11 . . . . . . . . . . . 1 . . . Part Schematic 13 | . . . . . . . . . . . . . . . . . . . 5 . . 3 . . . . . . 1 . . . 4 . Robot Schematic 4 | . . . . . . . . . . . . . . . . . . . 4 . . . . . . . . . . . . . . . Robot Analysis 4 | . . . . . . . . . . . . . . . . . . . . . . . . . . . . . 2 . . 1 1 . Prototype ID Bank 11 | . . . . . . . . . . . . . . . . . . . 3 . 1 1 . . . . . . 1 . . 1 3 1 Open Door 8 | . . . . . . 1 . . . 1 . . . . . . . . . . 1 5 . . . . . . . . . . . . Level Access Points 2 | . . . . . . . . . 1 . . . . . . . . . . . . . . . . . . . . . . . . 1 Branch Access Points 5 | . . . . . . . . . . . . . . . . . . . . . 1 . . . . . . . 1 . . 2 1 . Machine Index 4 | . . . . . . . . . . . . . . . . . . . . . 1 1 . . . . . . . . . . 1 1 Terminal Index 3 | . . . . . . . . . . . . . . . . . . . . . 1 . . . . . . . . 1 . . . 1 Fabricator Index 1 | . . . . . . . . . . . . . . . . . . . . . . . . . . . . . 1 . . . . . Alert Level 5 | . . . . . . . . . . . . . . . . . . . . . . 3 . . 2 . . . . . . . . . Unreport Threat 17 | . . . . . . . . . . . . . . . . . . . . . . 3 2 . 2 . 1 . 2 2 . 1 3 1 Recall Investigation 6 | . . . . . 1 1 . . . . . . . . . . . . . . . 1 . . . . . . 1 2 . . . . Recall Extermination 2 | . . . . . . . . . . . . . . . . . . . . . . . . . . . . . 1 . . . 1 . Hauler Manifests 4 | . . . . . . . . . . . . . . . . . . . . . 1 . . . . . . . 1 . . . 2 . Registered Prototypes 2 | . . . . . . . . . . . . . . . . . . . . . 1 . . . . . . . . . . . 1 . Zone Layout 2 | . . . . . . . . . . . . . . . . . . . . . . . . . . . . . . . . . 2 . EX-Prototype ID Bank 1 | . . . 1 . . . . . . . . . . . . . . . . . . . . . . . . . . . . . . . Fabricator Hacks 36 | . . . . . . . . . . . . . . . . . . . . . 7 . . . . . . . 10 4 . 7 8 . Network Status 2 | . . . . . . . . . . . . . . . . . . . . . . . . . . . . . 2 . . . . . Load Schematic 19 | . . . . . . . . . . . . . . . . . . . . . 4 . . . . . . . 5 2 . 4 4 . Build 15 | . . . . . . . . . . . . . . . . . . . . . 3 . . . . . . . 3 2 . 3 4 . Repair Station Hacks 33 | . . . . . . . . . . . . . . 2 . 2 . . . . 4 . . . . . . . 18 . . 2 5 . Scan Component 17 | . . . . . . . . . . . . . . 1 . 1 . . . . 2 . . . . . . . 9 . . 1 3 . Repair 16 | . . . . . . . . . . . . . . 1 . 1 . . . . 2 . . . . . . . 9 . . 1 2 . Recycling Unit Hacks . | . . . . . . . . . . . . . . . . . . . . . . . . . . . . . . . . . . . Scanalyzer 12 | . . . . . . . . . . . . . . . . . . . . . . . . . . . 4 . 4 . . 4 . . Insert Component 11 | . . . . . . . . . . . . . . . . . . . . . . . . . . . 4 . 3 . . 4 . . Analyze 1 | . . . . . . . . . . . . . . . . . . . . . . . . . . . . . 1 . . . . . Garrison Access Hacks 7 | . . . . . 1 . . . . . . . . . . . . . . . 1 . . . 1 . . . 2 . . . 2 . Unlock Access 1 | . . . . . . . . . . . . . . . . . . . . . . . . . 1 . . . . . . . . . Seal Access 4 | . . . . . 1 . . . . . . . . . . . . . . . 1 . . . . . . . 1 . . . 1 . Coupler Status 2 | . . . . . . . . . . . . . . . . . . . . . . . . . . . . . 1 . . . 1 . Unauthorized Hacks 117 | . . . . . 8 5 . . 4 . . . . 2 . 2 . . . . 10 11 3 . 9 . . . 20 11 . 9 19 4 Terminals 36 | . . . . . 2 1 . . 1 . . . . . . 1 . . . . 4 5 1 . 3 . . . 3 3 . 3 7 2 Assimilate 8 | . . . . . 1 1 . . . . . . . . . . . . . . 1 . . . 1 . . . . . . 1 3 . Botnet 23 | . . . . . 1 . . . 1 . . . . . . 1 . . . . 3 4 1 . 1 . . . 2 2 . 2 4 1 Disrupt 4 | . . . . . . . . . . . . . . . . . . . . . . 1 . . 1 . . . 1 1 . . . . Operators 1 | . . . . . . . . . . . . . . . . . . . . . . . . . . . . . . . . . . 1 Fabricators 5 | . . . . . . . . . . . . . . . . . . . . . . . . . . . . . 3 1 . . 1 . Siphon 5 | . . . . . . . . . . . . . . . . . . . . . . . . . . . . . 3 1 . . 1 . Repair Stations . | . . . . . . . . . . . . . . . . . . . . . . . . . . . . . . . . . . . Recycling Units . | . . . . . . . . . . . . . . . . . . . . . . . . . . . . . . . . . . . Scanalyzers . | . . . . . . . . . . . . . . . . . . . . . . . . . . . . . . . . . . . Garrison Access . | . . . . . . . . . . . . . . . . . . . . . . . . . . . . . . . . . . . Data Cores Recovered 1 | . . . . . . . . . . . . . . . . . . . . . 1 . . . . . . . . . . . . . Used . | . . . . . . . . . . . . . . . . . . . . . . . . . . . . . . . . . . . Hacking Detections 74 | . . . . . 3 6 . . 3 . . . . 3 . 3 . . . . 10 10 4 . 5 . 2 . 8 3 . 4 7 3 Full Trace Events 6 | . . . . . 1 2 . . . . . . . 1 . . . . . . 1 . . . . . . . 1 . . . . . Feedback Events 2 | . . . . . . . . . . . . . . . . . . . . . 1 . . . . . . . 1 . . . . . Hackware Fried 2 | . . . . . . . . . . . . . . . . . . . . . 1 . . . . . . . 1 . . . . . Feedback Blocked . | . . . . . . . . . . . . . . . . . . . . . . . . . . . . . . . . . . . Robot Schematics Acquired 4 | . . . . . . . . . . . . . . . . . . . 4 . . . . . . . . . . . . . . . Robots Built . | . . . . . . . . . . . . . . . . . . . . . . . . . . . . . . . . . . . Matter . | . . . . . . . . . . . . . . . . . . . . . . . . . . . . . . . . . . . Time . | . . . . . . . . . . . . . . . . . . . . . . . . . . . . . . . . . . . Total Robot Build Rating . | . . . . . . . . . . . . . . . . . . . . . . . . . . . . . . . . . . . Part Schematics Acquired 14 | . . . . . . . . . . . . . . . . . . . 5 . . 3 . . . . . . 2 . . . 4 . Parts Built 17 | . . . . . . . . . . . . . . . . . . . . . 4 . . . . . . . 3 3 . 3 4 . Matter 3245 | . . . . . . . . . . . . . . . . . . . . . 782 . . . . . . . 664 421 . 563 815 . Time 1094 | . . . . . . . . . . . . . . . . . . . . . 205 . . . . . . . 312 145 . 145 287 . Total Part Build Rating 104 | . . . . . . . . . . . . . . . . . . . . . 22 . . . . . . . 16 23 . 23 20 . Parts Repaired 16 | . . . . . . . . . . . . . . 1 . 1 . . . . 2 . . . . . . . 9 . . 1 2 . Time 564 | . . . . . . . . . . . . . . 28 . 28 . . . . 100 . . . . . . . 346 . . 26 36 . Parts Recycled . | . . . . . . . . . . . . . . . . . . . . . . . . . . . . . . . . . . . Recycled Matter . | . . . . . . . . . . . . . . . . . . . . . . . . . . . . . . . . . . . Retrieved Matter . | . . . . . . . . . . . . . . . . . . . . . . . . . . . . . . . . . . . Retrieved Components . | . . . . . . . . . . . . . . . . . . . . . . . . . . . . . . . . . . . Parts Scanalyzed 1 | . . . . . . . . . . . . . . . . . . . . . . . . . . . . . 1 . . . . . Part Schematics Acquired 1 | . . . . . . . . . . . . . . . . . . . . . . . . . . . . . 1 . . . . . Parts Damaged . | . . . . . . . . . . . . . . . . . . . . . . . . . . . . . . . . . . . Bothacking | -11 -10 -10 -10 -9 -8 -8 -7 -7 -7 -7 -7 -7 -6 -6 -6 -6 -6 -6 -6 -5 -5 -5 -5 -5 -5 -5 -4 -4 -4 -4 -4 -3 -2 -1 ------------ Run | Scr Mat Min Exi Min Mat Sto Fac Was Fac Low Low Zio Pro Fac Was Fac Low Low Dat Pro Fac Ext Cet Arc Hub Gar Fac Was Fac Arm Lab Res Res Acc Used RIF Installer 1 | . . . . . . . . . . . . . . . . . . . . . . . . . . 1 . . . . . . . . Robots Hacked 5 | . . . . . . 1 . . . . . . . . . . . . . . 1 . 1 . . . . . . . . . 2 . Non-combat 2 | . . . . . . . . . . . . . . . . . . . . . . . . . . . . . . . . . 2 . Combat 3 | . . . . . . 1 . . . . . . . . . . . . . . 1 . 1 . . . . . . . . . . . Robot Hacks Applied 6 | . . . . . . 1 . . . . . . . . . . . . . . 1 . 1 . . . . . . . . . 3 . parse_system 3 | . . . . . . 1 . . . . . . . . . . . . . . 1 . 1 . . . . . . . . . . . purge_threat 1 | . . . . . . . . . . . . . . . . . . . . . . . . . . . . . . . . . 1 . formatsys_low 1 | . . . . . . . . . . . . . . . . . . . . . . . . . . . . . . . . . 1 . formatsys_high 1 | . . . . . . . . . . . . . . . . . . . . . . . . . . . . . . . . . 1 . Relay Couplers Released 8 | . . . . . 3 . . . . . . . . . . 3 . . . . . . . . . . . . . . . . 2 . Machine Destruction 5 | . . . . . 3 . . . . . . . . . . . . . . . . . . . . . . . . . . . 2 . Programmers 3 | . . . . . . . . . . . . . . . . 3 . . . . . . . . . . . . . . . . . . Attached 2 | . . . . . . . . . . . . . . . . . . . . . . . . . . . . . . . . . 2 . Robots Rewired 12 | . . . . . . . . . . 1 . . . . . . . . . . . 7 . . . . . . . 4 . . . . Allies Hacked 3 | . . . . . . . . . . . 1 . . . . . . . . . . . . . . . . . 1 1 . . . . Hacks Repelled 3 | . . . . . . . . . . . . . . . . . . . . . . . . . . . . . 1 2 . . . . Allies | -11 -10 -10 -10 -9 -8 -8 -7 -7 -7 -7 -7 -7 -6 -6 -6 -6 -6 -6 -6 -5 -5 -5 -5 -5 -5 -5 -4 -4 -4 -4 -4 -3 -2 -1 -------- Run | Scr Mat Min Exi Min Mat Sto Fac Was Fac Low Low Zio Pro Fac Was Fac Low Low Dat Pro Fac Ext Cet Arc Hub Gar Fac Was Fac Arm Lab Res Res Acc Total Allies 83 | . . . . . 1 1 . 19 . 1 . 7 . . . . . . . . 1 14 5 . . . . . 9 17 . 4 4 . Largest Group 19 | . . . . . 1 1 . 19 13 1 1 8 8 1 . . . . . . 1 12 10 5 4 . . . 4 13 . 4 2 1 Highest-Rated Group 709 | . . . . . 10 26 . 487 361 30 30 201 201 20 . . . . . . 99 480 709 328 302 . . . 184 602 . 148 54 26 Highest-Rated Ally 156 | . . . . . 10 26 . 35 33 30 30 31 31 20 . . . . . . 99 156 156 94 94 . . . 46 58 . 46 44 26 Total Orders 33 | . . . . . . 1 . . . . . . . 1 . . . . . . 1 . . . 1 . . . . . . 11 14 4 STAY 7 | . . . . . . . . . . . . . . . . . . . . . . . . . 1 . . . . . . 1 5 . GOTO 10 | . . . . . . . . . . . . . . . . . . . . . . . . . . . . . . . . 5 3 2 FOLLOW 12 | . . . . . . . . . . . . . . . . . . . . . . . . . . . . . . . . 4 6 2 EXPLORE 4 | . . . . . . 1 . . . . . . . 1 . . . . . . 1 . . . . . . . . . . 1 . . Ally Attacks 640 | . . . . . . 20 . 90 82 . 2 . 29 . 16 . . . . 20 32 54 109 17 27 . . . 50 81 . 11 . . Total Damage 22304 | . . . . . . 1029 . 3216 1862 . 41 . 576 . 860 . . . . 1174 2530 912 4334 636 1078 . . . 1263 2477 . 316 . . Kills 105 | . . . . . . 7 . 10 13 . 1 . 4 . . . . . . 4 18 8 13 3 7 . . . 5 12 . . . . Allies Corrupted 8 | . . . . . . . . . 2 . . . . . . . . . . . . 1 . . 1 . . . 1 2 . 1 . . Allies Melted . | . . . . . . . . . . . . . . . . . . . . . . . . . . . . . . . . . . . Turrets Deployed 3 | . . . . . . 1 . . . . . . . . 1 . . . . 1 . . . . . . . . . . . . . . Intel | -11 -10 -10 -10 -9 -8 -8 -7 -7 -7 -7 -7 -7 -6 -6 -6 -6 -6 -6 -6 -5 -5 -5 -5 -5 -5 -5 -4 -4 -4 -4 -4 -3 -2 -1 ------- Run | Scr Mat Min Exi Min Mat Sto Fac Was Fac Low Low Zio Pro Fac Was Fac Low Low Dat Pro Fac Ext Cet Arc Hub Gar Fac Was Fac Arm Lab Res Res Acc Robot Analysis Total 4 | . . . . . . . . . . . . . . . . . . . . . . . . . . . . . 2 . . 1 1 . Derelict Logs Recovered 6 | . . . . 1 . . . . . 1 . . . . . . 1 1 . 2 . . . . . . . . . . . . . . Drone Launches 34 | . . . . . . 14 . . . . . . . 4 . . . . . . 6 . . . . . . . . . . 10 . . Drone Recoveries . | . . . . . . . . . . . . . . . . . . . . . . . . . . . . . . . . . . . Exploration | -11 -10 -10 -10 -9 -8 -8 -7 -7 -7 -7 -7 -7 -6 -6 -6 -6 -6 -6 -6 -5 -5 -5 -5 -5 -5 -5 -4 -4 -4 -4 -4 -3 -2 -1 ------------- Run | Scr Mat Min Exi Min Mat Sto Fac Was Fac Low Low Zio Pro Fac Was Fac Low Low Dat Pro Fac Ext Cet Arc Hub Gar Fac Was Fac Arm Lab Res Res Acc Turns Passed 27254 | 54 53 42 264 216 1097 1864 118 602 1458 1490 466 1296 858 779 229 1822 807 446 346 1030 1495 719 492 1122 1802 615 193 104 1929 850 139 707 1590 160 Spaces Moved 14416 | 48 44 46 281 146 466 389 68 350 723 745 250 741 420 364 121 797 434 270 170 541 1110 403 240 44 815 278 136 148 1169 600 145 548 1174 192 Core 61 | 5 . . . . 1 . . 55 . . . . . . . . . . . . . . . . . . . . . . . . . . Treads 6729 | . . . . . 76 389 68 295 723 745 250 741 420 364 121 797 434 270 170 129 . . . . 496 216 12 . 13 . . . . . Legs 389 | . . . . . . . . . . . . . . . . . . . . 296 93 . . . . . . . . . . . . . Wheels 1065 | 43 44 46 281 146 389 . . . . . . . . . . . . . . 116 . . . . . . . . . . . . . . Hover 6172 | . . . . . . . . . . . . . . . . . . . . . 1017 403 240 44 319 62 124 148 1156 600 145 548 1174 192 Flight . | . . . . . . . . . . . . . . . . . . . . . . . . . . . . . . . . . . . Fastest Speed 48 | 50 90 90 90 100 100 165 165 50 180 160 180 160 160 160 160 160 160 160 160 120 60 63 113 113 113 113 63 63 58 50 53 48 48 48 Average Speed 122 | 85 90 90 91 100 128 165 165 152 180 179 180 163 160 163 160 160 160 160 163 150 90 96 113 113 153 165 115 63 76 57 53 51 54 52 Slowest Speed 1200 | 90 90 90 100 100 1200 165 165 185 180 180 180 180 160 200 160 160 160 160 180 210 150 113 113 113 180 180 180 63 250 127 53 53 156 148 Overloaded Moves . | . . . . . . . . . . . . . . . . . . . . . . . . . . . . . . . . . . . Propulsion Burnouts . | . . . . . . . . . . . . . . . . . . . . . . . . . . . . . . . . . . . Robots Hopped 5 | . . . . . . 1 . . . 2 . . . . . . . . . . . . . . . . . . . 1 . . 1 . Cave-ins Triggered 2 | . . . . . . . . . . . . . . . . 1 . . . . . 1 . . . . . . . . . . . . Exploration Rate (%) 45 | 4 18 14 65 34 37 71 3 92 21 70 44 80 52 14 72 18 50 48 78 63 27 61 69 68 64 43 3 83 20 53 95 17 30 8 Regions Visited 34 Branch Regions 18 Pre-discovered Areas 5 | . . . . . . . . . . . . 2 . . . . . 1 1 1 . . . . . . . . . . . . . . Known Exits Taken 9 | . . . . . . . . . . 1 . . 1 . . 1 1 1 1 . 1 . . . 1 . . . 1 . . . . . Unknown Exits Taken 18 | 1 1 1 1 1 1 1 . . 1 . 1 1 . . . . . . . 1 . 1 1 1 . . . . . 1 1 1 1 . Scrap Searched 9 | . . 1 . . . . . . . 1 1 2 . . . . 1 1 . 2 . . . . . . . . . . . . . . Spaces Dug 167 | . . . . . . 9 . . 4 2 . . . 3 . 14 . . . . 20 19 35 . 2 . . . 10 6 . 4 30 9 Terrain Destroyed 1151 | . 3 . . 12 6 14 . . 8 12 1 . 4 9 3 31 7 4 22 8 85 30 47 3 659 . . . 25 8 . 62 68 20 Melee 49 | . . . . . . 9 . . . . . . . . . . . . . . . . . . . . . . . . . 2 30 8 Projectile 278 | . . . . . . . . . 8 12 1 . 4 9 3 31 7 4 . 8 34 30 47 3 39 . . . 25 8 . 4 . 1 AOE 824 | . 3 . . 12 6 5 . . . . . . . . . . . . 22 . 51 . . . 620 . . . . . . 56 38 11 Actions | -11 -10 -10 -10 -9 -8 -8 -7 -7 -7 -7 -7 -7 -6 -6 -6 -6 -6 -6 -6 -5 -5 -5 -5 -5 -5 -5 -4 -4 -4 -4 -4 -3 -2 -1 --------- Run | Scr Mat Min Exi Min Mat Sto Fac Was Fac Low Low Zio Pro Fac Was Fac Low Low Dat Pro Fac Ext Cet Arc Hub Gar Fac Was Fac Arm Lab Res Res Acc Total 22200 | 57 49 46 290 183 821 1531 75 417 826 830 256 828 544 489 137 1151 507 278 242 699 1530 670 363 1100 1200 394 173 158 2039 1032 199 915 1945 226 Wait 5084 | . . . . 15 169 1051 . 37 43 22 . 80 53 55 5 204 29 5 36 44 260 50 26 1046 202 32 14 9 588 269 26 264 437 13 Move 14373 | 47 43 45 280 145 465 386 68 349 722 740 249 740 419 364 120 796 433 269 169 540 1109 401 239 43 814 277 136 147 1168 597 144 547 1171 191 Hop 5 | . . . . . . 1 . . . 2 . . . . . . . . . . . . . . . . . . . 1 . . 1 . Pick Up 228 | 4 1 1 5 . 28 6 2 4 5 1 . . 8 10 1 10 11 . 10 17 22 2 11 . 8 3 1 1 16 3 8 6 23 . Fast Attach 156 | 6 1 . . . 14 2 . 11 6 2 1 5 3 5 . 13 . 1 1 10 15 4 4 1 9 2 1 . 11 . 1 8 19 . Attach 158 | . . . . 1 11 3 4 3 2 2 . . 7 3 . 4 4 . 5 17 6 2 . . 8 3 3 . 32 8 . 7 19 4 Detach 117 | . . . . . 2 1 . 3 3 3 1 . 1 2 . 1 . . 2 9 7 3 1 . 9 5 2 . 29 6 . 8 18 1 Swap 208 | . . . 1 . 7 6 . 3 . . . . 3 2 . 4 . . 1 5 10 7 12 3 12 5 1 . 41 30 2 6 45 2 Drop 220 | . . . 4 . 12 4 1 7 7 4 . 3 9 6 1 4 4 . 11 10 27 4 12 . 19 5 2 1 13 4 8 11 27 . Fire 1082 | . 4 . . 21 53 33 . . 33 33 5 . 26 39 10 113 26 3 1 47 71 60 58 7 112 24 . . 128 60 10 47 53 5 Melee 178 | . . . . . 57 27 . . . . . . 14 . . . . . . . . . . . . . . . . . . 6 64 10 Ram 3 | . . . . 1 1 . . . . . . . . . . . . . . . . . . . 1 . . . . . . . . . Kick . | . . . . . . . . . . . . . . . . . . . . . . . . . . . . . . . . . . . Crush 4 | . . . . . 2 . . . 1 . . . . 1 . . . . . . . . . . . . . . . . . . . . Escape Stasis 240 | . . . . . . 4 . . 4 . . . . . . 2 . . . . . 92 . . 6 38 13 . 13 . . . 68 . Rewire 121 | . . . . . . . . . . 21 . . 1 . . . . . . . . 45 . . . . . . . 54 . . . . Trap 6 | . . . . . . . . . . . . . . . . . . . 6 . . . . . . . . . . . . . . . Miscellaneous 17 | . . . . . . 7 . . . . . . . 2 . . . . . . 3 . . . . . . . . . . 5 . . Route ------- -11/Scrapyard -10/Materials -10/Mines -10/Exiles -9/Mines -8/Materials -8/Storage -7/Factory -7/Waste -7/Factory (discovered 5 exits: Fac x4 / *Low) -7/Lower Caves -7/Lower Caves -7/Zion -6/Proximity Caves -6/Factory -6/Waste -6/Factory -6/Lower Caves -6/Lower Caves -6/Data Miner -5/Proximity Caves -5/Factory (discovered 6 exits: *Fac x2 / *Upp x2 / *Ext x2) -5/Extension (discovered 2 exits: *Fac / *Cet) -5/Cetus (discovered 2 exits: *Fac / [*Arc]) -5/Archives -5/Hub_04(d) (discovered 3 exits: *Fac x2 / Gar) -5/Garrison (discovered 2 exits: *Fac x2) -4/Factory -4/Waste -4/Factory (discovered 3 exits: *Upp x2 / *Arm) -4/Armory (discovered 3 exits: Res x2 / *Lab) -4/Lab -3/Research (discovered 3 exits: *Res / *Tes x2) -2/Research (discovered 3 exits: *Acc / Qua x2) -1/Access To Epsilon Eridani History --------- Turn | Location | Event 3 | -11/Scrapyard | Discovered new exit (range 15) 55 | -11/Scrapyard | Entered Materials 93 | -10/Materials | Discovered new exit (range 16) 108 | -10/Materials | Entered Mines 146 | -10/Mines | Deemed a non-threat by the Exiles lab entrance 146 | -10/Mines | Discovered new exit (range 5) 150 | -10/Mines | Entered Exiles 172 | -10/Exiles | Met 8R-AWN 186 | -10/Exiles | Met EX-HEX 212 | -10/Exiles | Met EX-BIN 256 | -10/Exiles | Aligned with FarCom system 257 | -10/Exiles | Given EX-Vault access code 281 | -10/Exiles | Opened EX-Vault 289 | -10/Exiles | Found Deploy-a-Sentry 291 | -10/Exiles | Found Deploy-a-Sentry 293 | -10/Exiles | Found Deploy-a-Sentry 307 | -10/Exiles | Build established: Mutant 313 | -10/Exiles | Warned to stay clear of 0b10 Research branches 340 | -10/Exiles | Met EX-DEC 403 | -10/Exiles | Discovered new exit (range 14) 414 | -10/Exiles | Left Exiles lab with Deploy-a-Sentry 414 | -10/Exiles | Entered Mines 415 | -9/Mines | Assembled infested the area 420 | -9/Mines | Assisted by a Guerilla fighting off Assembled 518 | -9/Mines | Destroyed 7 combat bots 520 | -9/Mines | Lost 5 parts (1p1u3w) 609 | -9/Mines | Learned Materials emergency access door positions 618 | -9/Mines | Discovered new exit (range 9) 630 | -9/Mines | Entered Materials 630 | -8/Materials | Evolved 4 slots: Utility x4 1609 | -8/Materials | Discovered new exit (range 4) 1611 | -8/Materials | Core integrity fell below 50% 1680 | -8/Materials | Lost 4 parts (1p1n2u) 1727 | -8/Materials | Entered Storage 1747 | -8/Storage | Build established: Hauler-Mutant 2556 | -8/Storage | DAS Turret deployed 3422 | -8/Storage | Discovered new exit (range 34) 3529 | -8/Storage | Core integrity fell below 20% 3591 | -8/Storage | Entered Factory 3591 | -7/Factory | Evolved 2 slots: Utility x2 3709 | -7/Factory | Sucked down chute 3709 | -7/Factory | Entered Waste 3741 | -7/Waste | Spotted C-40 Crusher 3771 | -7/Waste | Spotted C-40 Crusher 3786 | -7/Waste | Spotted C-40 Crusher 3796 | -7/Waste | Spotted C-40 Crusher 3796 | -7/Waste | Spotted C-40 Crusher 3825 | -7/Waste | Spotted C-40 Crusher 3837 | -7/Waste | Crushed by Compactor (1 part destroyed, 2 dropped) 3838 | -7/Waste | Crushed by Compactor (1 part destroyed, 2 dropped) 3839 | -7/Waste | Released all parts (8) 3873 | -7/Waste | Warlord forces began an assault 3882 | -7/Waste | Allies destroyed C-40 Crusher 3898 | -7/Waste | Allies destroyed C-40 Crusher 3900 | -7/Waste | Allies destroyed C-40 Crusher 3904 | -7/Waste | Allies destroyed C-40 Crusher 3908 | -7/Waste | Found Damper Plating 3910 | -7/Waste | Allies destroyed C-40 Crusher 3915 | -7/Waste | Allies destroyed C-40 Crusher 4077 | -7/Waste | Found Damper Plating 4279 | -7/Waste | Discovered new exit (range 12) 4292 | -7/Waste | Build established: Scavenger-Mutant 4311 | -7/Waste | Entered Factory 4311 | -7/Factory | Accompanied by 13 allies 4624 | -7/Factory | Discovered new exit (range 12) 5348 | -7/Factory | Identified exit to Factory 5769 | -7/Factory | Entered Lower Caves 6842 | -7/Lower Caves | Encountered a Warlord checkpoint 6908 | -7/Lower Caves | Learned Factory non-interactive machine intel 6988 | -7/Lower Caves | Found Prototype Device 7003 | -7/Lower Caves | Identified Heart of Steel 7093 | -7/Lower Caves | Discovered new exit (range 13) 7102 | -7/Lower Caves | Attracted the attention of an 0b10 outpost 7254 | -7/Lower Caves | Identified exit to Lower Caves 7259 | -7/Lower Caves | Entered another Lower Caves area 7259 | -7/Lower Caves | Accompanied by 1 ally 7708 | -7/Lower Caves | Discovered new exit (range 7) 7725 | -7/Lower Caves | Entered Zion 7725 | -7/Zion | Accompanied by 1 ally 7851 | -7/Zion | Learned location of Warlord (-4) 8175 | -7/Zion | Given A8's code to call for help 8220 | -7/Zion | Build established: Derelict-Mutant 8310 | -7/Zion | Gained Derelict followers 8528 | -7/Zion | Learned location of Data Miner (-6) 8594 | -7/Zion | Gained Derelict followers 8784 | -7/Zion | Discovered new exit (range 15) 8943 | -7/Zion | Acquired unknown access codes intercepted by a Zionite 9021 | -7/Zion | Entered Proximity Caves 9021 | -6/Proximity Caves | Accompanied by 8 allies 9492 | -6/Proximity Caves | Spotted B-75 Beast 9520 | -6/Proximity Caves | Destroyed B-75 Beast 9785 | -6/Proximity Caves | Discovered exit to Factory (range 15) 9803 | -6/Proximity Caves | Build established: Hacker-Mutant 9879 | -6/Proximity Caves | Entered Factory 9879 | -6/Factory | Accompanied by 1 ally 9879 | -6/Factory | Evolved 2 slots: Utility x2 9880 | -6/Factory | Loaded intel: 215 non-interactive machine locations 10430 | -6/Factory | Repaired Hvy. Treads? 10658 | -6/Factory | Sucked down chute 10658 | -6/Factory | Entered Waste 10711 | -6/Waste | DAS Turret deployed 10712 | -6/Waste | Spotted C-40 Crusher 10739 | -6/Waste | Spotted C-40 Crusher 10747 | -6/Waste | Destroyed C-40 Crusher 10750 | -6/Waste | Spotted C-40 Crusher 10750 | -6/Waste | Spotted C-40 Crusher 10769 | -6/Waste | Build established: Hacker-Skirmisher 10772 | -6/Waste | Crushed by Compactor (0 parts destroyed, 1 dropped) 10777 | -6/Waste | Crushed by Compactor (1 part destroyed, 1 dropped) 10784 | -6/Waste | Spotted C-40 Crusher 10873 | -6/Waste | Discovered new exit (range 10) 10885 | -6/Waste | Identified exit to Factory 10887 | -6/Waste | Entered Factory 10962 | -6/Factory | Found Prototype Processor 10962 | -6/Factory | Identified Exp. Signal Interpreter 11077 | -6/Factory | Build established: Hacker-Mutant 11220 | -6/Factory | Lost 3 parts (1p2u) 11248 | -6/Factory | Repaired Hvy. Treads 11304 | -6/Factory | Discovered new exit (range 11) 11353 | -6/Factory | Identified exit to Lower Caves 11599 | -6/Factory | Garrison activated, responded to threat 12417 | -6/Factory | System corruption reached 10% 12538 | -6/Factory | Crushed by falling debris 12538 | -6/Factory | Core integrity fell below 50% 12709 | -6/Factory | Entered Lower Caves 12889 | -6/Lower Caves | Attracted the attention of an 0b10 checkpoint 13121 | -6/Lower Caves | Learned Factory emergency access door positions 13188 | -6/Lower Caves | Encountered a Warlord checkpoint 13503 | -6/Lower Caves | Discovered new exit (range 9) 13515 | -6/Lower Caves | Identified exit to Lower Caves 13516 | -6/Lower Caves | Entered another Lower Caves area 13556 | -6/Lower Caves | Fission Core stolen by Master Thief 13738 | -6/Lower Caves | Encountered a Warlord checkpoint 13746 | -6/Lower Caves | Learned location of Extension (-5) 13940 | -6/Lower Caves | Discovered new exit (range 14) 13959 | -6/Lower Caves | Attracted the attention of an 0b10 checkpoint 13961 | -6/Lower Caves | Identified exit to Data Miner 13962 | -6/Lower Caves | Entered Data Miner 13964 | -6/Data Miner | Discovered new exit (range 9) 14004 | -6/Data Miner | Met Data Miner 14033 | -6/Data Miner | Learned location of Section 7 (-2) 14033 | -6/Data Miner | Acquired the access code to Warlord's prototype stash 14058 | -6/Data Miner | Received God Mode back door access code from Data Miner 14146 | -6/Data Miner | Destroyed Data Miner 14146 | -6/Data Miner | Data Conduit disabled 14172 | -6/Data Miner | Found Prototype Hackware 14175 | -6/Data Miner | Found Prototype Hackware 14178 | -6/Data Miner | Found Prototype Hackware 14306 | -6/Data Miner | Identified exit to Proximity Caves 14308 | -6/Data Miner | Entered Proximity Caves 14760 | -5/Proximity Caves | Lost 4 parts (1p1n1u1w) 14778 | -5/Proximity Caves | Learned location of Armory (-4) 14831 | -5/Proximity Caves | Learned Factory trap positions 14934 | -5/Proximity Caves | Spotted B-75 Beast 14952 | -5/Proximity Caves | Core integrity fell below 20% 14967 | -5/Proximity Caves | DAS Turret deployed 14979 | -5/Proximity Caves | Destroyed B-75 Beast 15319 | -5/Proximity Caves | Discovered new exit (range 11) 15334 | -5/Proximity Caves | Attracted the attention of an 0b10 outpost 15338 | -5/Proximity Caves | Entered Factory 15338 | -5/Factory | Evolved 2 slots: Propulsion x2 15339 | -5/Factory | Loaded intel: 571 trap records 15348 | -5/Factory | Heart of Steel transformed into Warbot 15439 | -5/Factory | Identified exit to Upper Caves 15439 | -5/Factory | Identified exit to Extension 15791 | -5/Factory | Discovered new exit (range 56) 16174 | -5/Factory | Fabricated Exp. Terrain Scanner (x1) 16351 | -5/Factory | Discovered new exit (range 15) 16444 | -5/Factory | Fabricated Cmb. Gravmag System? 16453 | -5/Factory | Hacking Suite fried by hacking feedback 16579 | -5/Factory | Fabricated Lgt. Regenerative Plating (x1) 16681 | -5/Factory | Repaired Hyp. Mass Driver 16720 | -5/Factory | Repaired Imp. Utility Shielding 16833 | -5/Factory | Entered Extension 16844 | -5/Extension | Disrupted transfer network 16954 | -5/Extension | Rescued a captive Derelict 16990 | -5/Extension | Rescued a captive Derelict 16992 | -5/Extension | Rescued a captive Derelict 17049 | -5/Extension | Rescued a captive Derelict 17164 | -5/Extension | Crushed by falling debris 17165 | -5/Extension | System corruption reached 10% 17185 | -5/Extension | Rescued a captive Derelict 17191 | -5/Extension | Rescued a captive Derelict 17225 | -5/Extension | Rescued A7 17511 | -5/Extension | Discovered new exit (range 10) 17512 | -5/Extension | Discovered new exit (range 6) 17552 | -5/Extension | Entered Cetus 17552 | -5/Cetus | Accompanied by 10 allies 17557 | -5/Cetus | Acquired a Cetus Manufacturing Module code from A7 17580 | -5/Cetus | Spotted Cetus Guard 17580 | -5/Cetus | Spotted Cetus Guard 17582 | -5/Cetus | Spotted Cetus Guard 17582 | -5/Cetus | Spotted Cetus Guard 17592 | -5/Cetus | Allies destroyed Cetus Guard 17595 | -5/Cetus | Destroyed Cetus Guard 17597 | -5/Cetus | Allies destroyed Cetus Guard 17600 | -5/Cetus | Destroyed Cetus Guard 17674 | -5/Cetus | Started Cetus Manufacturing Module 17699 | -5/Cetus | Manufactured an Enhanced Grunt 17724 | -5/Cetus | Manufactured an Enhanced Grunt 17744 | -5/Cetus | Discovered new exit (range 15) 17749 | -5/Cetus | Manufactured an Enhanced Grunt 17774 | -5/Cetus | Manufactured an Enhanced Grunt 17799 | -5/Cetus | Manufactured an Enhanced Grunt 17811 | -5/Cetus | Spotted Cetus Guard 17814 | -5/Cetus | Destroyed Cetus Guard 17815 | -5/Cetus | Spotted Cetus Guard 17823 | -5/Cetus | Destroyed Cetus Guard 17826 | -5/Cetus | Spotted Cetus Guard 17830 | -5/Cetus | Allies destroyed Cetus Guard 17840 | -5/Cetus | Discovered new exit (range 16) 17840 | -5/Cetus | Allies destroyed Cetus Guard 17848 | -5/Cetus | Found Prototype Device 17849 | -5/Cetus | Identified Exp. Thermal Shield 17948 | -5/Cetus | Destroyed A7 17952 | -5/Cetus | Extracted ID and sensor layout for unrecognized location from A7's data core 17963 | -5/Cetus | Found Med. Regenerative Plating 17966 | -5/Cetus | Found Exp. Thermal Shield 17989 | -5/Cetus | Met Revision 17 18044 | -5/Cetus | Entered Archives 18044 | -5/Archives | Accompanied by 5 allies 18099 | -5/Archives | Discovered new exit (range 16) 18107 | -5/Archives | Build established: Scavenger-Mutant 19166 | -5/Archives | Entered Hub_04(d) 19166 | -5/Hub_04(d) | Accompanied by 4 allies 19205 | -5/Hub_04(d) | Identified exit to Garrison 19296 | -5/Hub_04(d) | Disrupted transfer network 19360 | -5/Hub_04(d) | Discovered new exit (range 7) 20277 | -5/Hub_04(d) | Network Hub disabled 20284 | -5/Hub_04(d) | Network Hub disabled 20574 | -5/Hub_04(d) | Build established: Hauler-Mutant 20703 | -5/Hub_04(d) | Network Hub disabled 20703 | -5/Hub_04(d) | Spotted Lightning 20703 | -5/Hub_04(d) | Spotted Lightning 20703 | -5/Hub_04(d) | Spotted Lightning 20703 | -5/Hub_04(d) | Network Hub disabled 20711 | -5/Hub_04(d) | Destroyed Lightning 20729 | -5/Hub_04(d) | Destroyed Lightning 20736 | -5/Hub_04(d) | Spotted Lightning 20741 | -5/Hub_04(d) | Destroyed Lightning 20746 | -5/Hub_04(d) | Spotted Lightning 20747 | -5/Hub_04(d) | Destroyed Lightning 20758 | -5/Hub_04(d) | Destroyed Lightning 20764 | -5/Hub_04(d) | Destroyed Lightning 20785 | -5/Hub_04(d) | Destroyed 15 combat bots 20789 | -5/Hub_04(d) | Found Prototype Energy Cannon 20798 | -5/Hub_04(d) | Found Prototype Device 20798 | -5/Hub_04(d) | Identified Exp. Phase Shifter 20816 | -5/Hub_04(d) | Discovered new exit (range 15) 20878 | -5/Hub_04(d) | Found Prototype Processor 20878 | -5/Hub_04(d) | Identified Exp. Targeting Computer 20966 | -5/Hub_04(d) | First assault squad dispatched 20968 | -5/Hub_04(d) | Entered Garrison 21100 | -5/Garrison | Triggered checkpoint 21244 | -5/Garrison | Discovered new exit (range 15) 21338 | -5/Garrison | Triggered checkpoint 21384 | -5/Garrison | Build established: Scavenger-Mutant 21514 | -5/Garrison | Triggered checkpoint 21540 | -5/Garrison | Discovered new exit (range 14) 21576 | -5/Garrison | Installed Relay Interface Framework 21583 | -5/Garrison | Entered Factory 21583 | -4/Factory | Evolved 2 slots: Utility x2 21698 | -4/Factory | Identified Quantum Router 21698 | -4/Factory | Identified System Mapper 21698 | -4/Factory | Identified Ghost Barrier 21776 | -4/Factory | Sucked down chute 21776 | -4/Factory | Entered Waste 21776 | -4/Waste | The area was eerily silent 21861 | -4/Waste | Discovered new exit (range 13) 21880 | -4/Waste | Entered Factory 21889 | -4/Factory | Identified EMDS 21934 | -4/Factory | Repaired Imp. Utility Shielding 21989 | -4/Factory | Repaired Cmb. Linear Gravjet? 22045 | -4/Factory | Identified exit to Upper Caves 22045 | -4/Factory | Identified exit to Armory 22059 | -4/Factory | Repaired Cmb. Gravmag System 22111 | -4/Factory | Repaired Adv. Variable Charge Gun 22179 | -4/Factory | Repaired Centrium Heavy Treads? 22235 | -4/Factory | Repaired Cmb. Gravmag System? 22313 | -4/Factory | Repaired Imp. KE Penetrator? 22654 | -4/Factory | Allied Derelicts emerged from ambush trap array 22836 | -4/Factory | Build established: Hacker-Mutant 22857 | -4/Factory | Repaired Imp. Utility Shielding 22907 | -4/Factory | Repaired Imp. KE Penetrator 23268 | -4/Factory | Fabricated Exp. Utility Shielding? 23421 | -4/Factory | Fabricated Mni. Smartbomb Launcher? 23456 | -4/Factory | Adv. Hacking Suite fried by hacking feedback 23501 | -4/Factory | Allied Derelicts emerged from ambush trap array 23648 | -4/Factory | Fabricated Exp. Terrain Scan Processor? 23748 | -4/Factory | Garrison activated, responded to threat 23809 | -4/Factory | Entered Armory 24100 | -4/Armory | Assisted by bots powering up and referring to "LRC-V3" 24285 | -4/Armory | Fabricated Exp. Propulsion Shielding (x1) 24355 | -4/Armory | Fabricated Cmb. Linear Gravjet (x2) 24431 | -4/Armory | Found Fusion Bomb Launcher 24486 | -4/Armory | Discovered new exit (range 30) 24539 | -4/Armory | Allied Derelicts emerged from ambush trap array 24570 | -4/Armory | Spotted B-86 Titan 24617 | -4/Armory | Discovered new exit (range 25) 24652 | -4/Armory | Discovered new exit (range 7) 24659 | -4/Armory | Entered Lab 24659 | -4/Lab | Discovered new exit (range 9) 24668 | -4/Lab | Hidden lab's door opened automatically 24668 | -4/Lab | Sensor layout match revealed 24669 | -4/Lab | Gained access to the hidden lab's interior 24672 | -4/Lab | Unable to decrypt terminal 24725 | -4/Lab | Found Quantum Router 24727 | -4/Lab | Found Med. Regenerative Plating 24731 | -4/Lab | Found Prototype Energy Gun 24732 | -4/Lab | Identified Hyp. EM Gauss Rifle 24735 | -4/Lab | Found Prototype Energy Cannon 24735 | -4/Lab | Identified Warp Cannon 24745 | -4/Lab | Found Prototype Special Weapon 24761 | -4/Lab | Found Alien Artifact 24780 | -4/Lab | Found Alien Artifact 24787 | -4/Lab | Found Alien Artifact 24798 | -4/Lab | Entered Research 24798 | -3/Research | Evolved 2 slots: Utility x2 24911 | -3/Research | Identified exit to Testing 24978 | -3/Research | Repaired Exp. Utility Shielding 24998 | -3/Research | Revision forces began assault on 0b10 25004 | -3/Research | Found Enh. Force Lance 25022 | -3/Research | Identified Transdimensional Reconstructor 25022 | -3/Research | Identified Core Regenerator 25022 | -3/Research | Identified Integrated Dissipator 25022 | -3/Research | Identified Gui. Remote Datajack 25022 | -3/Research | Installed Integrated Dissipator, increased core heat dissipation (+2%) 25049 | -3/Research | Met up with Revision 17++ 25297 | -3/Research | Fabricated Cmb. Linear Gravjet (x2) 25341 | -3/Research | Discovered new exit (range 23) 25491 | -3/Research | Fabricated Exp. Utility Shielding (x1) 25498 | -3/Research | Research terminal network offline 25505 | -3/Research | Entered another Research area 25505 | -2/Research | Accompanied by 4 allies 25505 | -2/Research | Evolved 2 slots: Utility x2 25633 | -2/Research | Repaired Hyp. Mass Driver 25650 | -2/Research | Repaired Fusion Compressor 25671 | -2/Research | Build established: Mechanic-Ninja 25727 | -2/Research | Discovered new exit (range 24) 25778 | -2/Research | Destroyed 8 combat bots 26244 | -2/Research | Found Prototype Processor 26325 | -2/Research | Destroyed 8 combat bots 26418 | -2/Research | Discovered new exit (range 22) 26501 | -2/Research | Fabricated Imp. Fusion Compressor (x1) 26579 | -2/Research | Fabricated Exp. Weapon Shielding? 26688 | -2/Research | Fabricated Exp. Hacking Suite (x1) 26713 | -2/Research | Fabricated Lrg. Storage Unit (x1) 26926 | -2/Research | Identified exit to Quarantine 27095 | -2/Research | Entered Access 27095 | -1/Access | Accompanied by 1 ally 27095 | -1/Access | Evolved 2 slots: Utility x2 27132 | -1/Access | Identified exit to Surface 27255 | *** | Escaped! Last Messages --------------- Downloaded coordinate data. >>Prototypes Downloading prototype IDs... Exp. Actuator Array Exp. Biometal Medium Treads Graviton Cannon Singularity Reactor 27168_ K-01 Serf cleans the Radio-Gravity Array. 27170_ Connecting with Terminal... >>Alert(Purge) Purged threat record, alert level lowered. 27171_ Administrator 9a reports 0b10 security level has lowered to 0. 27171_ K-01 Serf cleans the Radio-Gravity Array. 27213_ Administrator 9a reports 0b10 security level has risen to 1. 27220_ Triggered Hellfire Trap. 27220_ An explosion rips through the floor. 27220_ Longscan Aggregator disabled. 27223_ The unstable cave ceiling collapses. 27246_ Main Access Shell breached. [Achievement: Master Trapper] Map ----- +----------------------------------------------------+ | ?????????? ?? ? ? ?#? ##?##????#?#????#?????????? | | ??????##?#? ## ?##?#?#?#?####?##?###??????? | | ??????####?? ##? #####?###???###??##? ?????? | | ??????#?#######??### ##############????#? ????? | | ????###?### ? ? ########?#?##?####?#?????? | | ?? ? ### ? #################???#????? | | ?? ???? #?# ####### #################?###????? | | ?? ? #?# #####?##+###################?######?? | | ## ?? ### # ############????#??? | | ?? ? #?# # ? ###############?###? | | #? ### # ?##############? ?"? | | ##?##+##### # ############### ?""" | | ?? # ############### ""? | | ? ? # ############### """ | | # ############### """ | | ? # ############### | | ? ############### | | # ################################ | | # ################################ | | # #######"######################## | | # """T"""" """" #### """ | | # """ """" """" BB #### """ | | # " """""" """" BB ######### | | # " " " """" | | # " " o" " """" | | # # " " @" " """" | | # w# " " " """" | | + # " """"" """" BB ######### | | ## # " """" BB ######### | | ## # " """" ######### | | ## # #######"###"######################### | | ## # ########### ######################### | | ## # ###########"######################### | | ## # ####################### | | ########### # ####################### | | ########### + ###################### | | ########### # ###################### | | ########### # ##################### | | ########### # "" # ############ | | ########### # ############ | | ########### # " ############# | | ########### # "" " ############# | | ########### # " "" "" | | ########### # "" ## ## """"" | | ########### ################ ## """"" | | ########### ################ ## """"" | | ########## ############### ## """"" | | ########## ######## ## """"" | | ########## ######## ]!! ## | | ########## ##### ######## ]!! ## | +----------------------------------------------------+ Best States ------------- Heat Dissipation 75 Coolant Potential 100 Energy Generation 25 Energy Capacity 990 Matter Stores 550 Matter Capacity 550 Sight Range 16 Terrain Scan Range 30 Terrain Scan Density 1010 Jamming Range 12 Armor Coverage 2625 Resistance: KI 30 Resistance: TH 30 Resistance: EM 90 Propulsion Shielding 90 Utility Shielding 90 Weapon Shielding 90 Weapon Cycling 25 Phase Shifting 20 Evasion (%) 77 Targeting Accuracy 12 Core Analysis 6 Recoil Reduction 2 Particle Charging 25 Offensive Hacking 34 Defensive Hacking 25 Item Schematics ----------------- Combat Drone Bay | -6/Data Miner | Free Lgt. Regenerative Plating | -6/Data Miner | Free Cmb. Gravmag System | -6/Data Miner | Free Exp. Terrain Scanner | -6/Data Miner | Free Cloaking Device | -6/Data Miner | Free Exp. Utility Shielding | -5/Extension | Hacked Exp. Propulsion Shielding | -5/Extension | Hacked Exp. Terrain Scan Processor | -5/Extension | Hacked Cmb. Linear Gravjet | -4/Factory | Scanalyzed Mni. Smartbomb Launcher | -4/Factory | Hacked Imp. Fusion Compressor | -2/Research | Hacked Exp. Weapon Shielding | -2/Research | Hacked Lrg. Storage Unit | -2/Research | Hacked Exp. Hacking Suite | -2/Research | Hacked Robot Schematics ------------------ S-27 Virus | -6/Data Miner | Free G-50 Soldier | -6/Data Miner | Free X-72 Disruptor | -6/Data Miner | Free I-36 Angel | -6/Data Miner | Free Fabricated ------------ Exp. Terrain Scanner | x1 | -5/Factory Cmb. Gravmag System | x2 | -5/Factory Lgt. Regenerative Plating | x1 | -5/Factory Exp. Utility Shielding | x1 | -4/Factory Mni. Smartbomb Launcher | x1 | -4/Factory Exp. Terrain Scan Processor | x1 | -4/Factory Exp. Propulsion Shielding | x1 | -4/Armory Cmb. Linear Gravjet | x2 | -4/Armory Cmb. Linear Gravjet | x2 | -3/Research Exp. Utility Shielding | x1 | -3/Research Imp. Fusion Compressor | x1 | -2/Research Exp. Weapon Shielding | x1 | -2/Research Exp. Hacking Suite | x1 | -2/Research Lrg. Storage Unit | x1 | -2/Research Alien Tech Used ----------------- Integrated Dissipator Achievements -------------- Master Trapper Challenges ------------ Trapped Game ------ Seed NeutralizingSensorPerforator Manual? 0 Play Time 05:31:15 Cumulative 744.1 hours Start 2019.11.20 @ 19:00:55 End 2019.11.22 @ 01:28:57 Sessions 8 Manual Loads 0 Difficulty Rogue Special Mode None Game No. 206 Rogue 206 Adventurer 0 Explorer 0 Win Type 0 Total 37 Types 28/0/2/3/2/1/1 Lore% 96 Gallery% 98 Achievement% 92 Wizard Run 0 Options --------- ASCII 0 Keyboard 1 Movement Numpad Keybinds 0 Fullscreen 1 Font 18/SmallcapsGlow Map View 76x50 Tactical HUD 1 Map Filters NONE Filters NONE Steam 1 RUN: e88c9a5b-c84c-4ab1-965a-014d56a7180d